[Event "GrandPrix_29.05"]
[Site "Chess.com"]
[Date "2020.05.29"]
[Round "6"]
[White "BairaKovanova"]
[Black "Olga_Girya"]
[Result "1-0"]
[WhiteElo "2255"]
[BlackElo "2174"]
[TimeControl "600+2"]
[EndTime "12:00:58 PDT"]
[Termination "BairaKovanova won on time"]

1. e4 {[%clk 0:10:01.9]} 1... c6 {[%clk 0:09:59.6]} 2. d4 {[%clk 0:10:01.7]}
2... d5 {[%clk 0:10:00.8]} 3. Nc3 {[%clk 0:10:02.2]} 3... dxe4 {[%clk
0:10:01.4]} 4. Nxe4 {[%clk 0:10:03.2]} 4... Nf6 {[%clk 0:10:03]} 5. Ng3 {[%clk
0:09:43.6]} 5... h5 {[%clk 0:09:54.5]} 6. h4 {[%clk 0:09:38.8]} 6... g6 {[%clk
0:09:36.2]} 7. Bg5 {[%clk 0:09:30.7]} 7... Bg7 {[%clk 0:09:34.1]} 8. Qd2 {[%clk
0:09:29.7]} 8... Qd5 {[%clk 0:08:26.6]} 9. Nf3 {[%clk 0:09:11.7]} 9... Nbd7
{[%clk 0:05:15.4]} 10. Be2 {[%clk 0:07:23.3]} 10... b5 {[%clk 0:04:22.8]} 11.
O-O {[%clk 0:06:40.6]} 11... O-O {[%clk 0:04:23.4]} 12. Rfe1 {[%clk 0:06:30]}
12... a6 {[%clk 0:03:02.9]} 13. b3 {[%clk 0:06:27.6]} 13... c5 {[%clk
0:02:12.3]} 14. c4 {[%clk 0:05:13.2]} 14... Qb7 {[%clk 0:01:41.1]} 15. Ne5
{[%clk 0:03:43.5]} 15... Nxe5 {[%clk 0:00:58.8]} 16. dxe5 {[%clk 0:03:42.1]}
16... Ng4 {[%clk 0:00:14]} 17. Bf3 {[%clk 0:03:40.7]} 17... Qa7 {[%clk
0:00:13.2]} 18. Bxa8 {[%clk 0:02:57.1]} 18... Qxa8 {[%clk 0:00:15.1]} 19. Bxe7
{[%clk 0:02:01.6]} 19... Re8 {[%clk 0:00:16]} 20. Bf6 {[%clk 0:02:02.6]} 20...
Bh6 {[%clk 0:00:12]} 21. Bg5 {[%clk 0:01:29.8]} 21... Bg7 {[%clk 0:00:10.4]} 22.
Ne4 {[%clk 0:01:02.6]} 22... Bb7 {[%clk 0:00:06.6]} 23. f3 {[%clk 0:00:46.6]}
23... Nxe5 {[%clk 0:00:06.6]} 24. Nf6+ {[%clk 0:00:43.4]} 24... Bxf6 {[%clk
0:00:07.9]} 25. Bxf6 {[%clk 0:00:44.7]} 25... Bxf3 {[%clk 0:00:02.4]} 26. Qh6
{[%clk 0:00:38.9]} 1-0

[Event "GrandPrix_29.05"]
[Site "Chess.com"]
[Date "2020.05.29"]
[Round "6"]
[White "BMOchsner"]
[Black "titan013"]
[Result "1-0"]
[WhiteElo "2226"]
[BlackElo "2190"]
[TimeControl "600+2"]
[EndTime "12:01:01 PDT"]
[Termination "BMOchsner won by checkmate"]

1. e4 {[%clk 0:10:01.9]} 1... c5 {[%clk 0:10:00.8]} 2. Nf3 {[%clk 0:10:02.3]}
2... d6 {[%clk 0:10:01.5]} 3. d4 {[%clk 0:10:03.4]} 3... cxd4 {[%clk 0:10:02.7]}
4. Nxd4 {[%clk 0:10:05]} 4... Nf6 {[%clk 0:10:04.3]} 5. Nc3 {[%clk 0:10:06.5]}
5... a6 {[%clk 0:10:05.7]} 6. h3 {[%clk 0:10:07.3]} 6... e6 {[%clk 0:10:06.3]}
7. g4 {[%clk 0:10:06.7]} 7... Be7 {[%clk 0:10:07.7]} 8. g5 {[%clk 0:09:56.1]}
8... Nfd7 {[%clk 0:10:08.6]} 9. h4 {[%clk 0:09:57.2]} 9... b5 {[%clk 0:10:08.9]}
10. Bg2 {[%clk 0:09:02.3]} 10... Bb7 {[%clk 0:10:06.9]} 11. O-O {[%clk
0:08:39.9]} 11... Nc6 {[%clk 0:09:49.6]} 12. Be3 {[%clk 0:07:08]} 12... Rc8
{[%clk 0:09:17.1]} 13. Nxc6 {[%clk 0:05:15]} 13... Bxc6 {[%clk 0:09:10.6]} 14.
f4 {[%clk 0:05:12.8]} 14... h6 {[%clk 0:09:04.5]} 15. Qf3 {[%clk 0:03:27.4]}
15... hxg5 {[%clk 0:08:58.9]} 16. hxg5 {[%clk 0:03:27.8]} 16... g6 {[%clk
0:08:45]} 17. Rae1 {[%clk 0:03:19.2]} 17... b4 {[%clk 0:08:38.7]} 18. Nd5 {[%clk
0:03:19.3]} 18... exd5 {[%clk 0:07:45.9]} 19. exd5 {[%clk 0:03:19.7]} 19... Bb5
{[%clk 0:07:47.2]} 20. Rf2 {[%clk 0:03:01]} 20... O-O {[%clk 0:06:17.2]} 21. Qh3
{[%clk 0:02:46.4]} 21... Rc4 {[%clk 0:06:04.5]} 22. Bf1 {[%clk 0:02:35.5]} 22...
Nf6 {[%clk 0:05:09.5]} 23. gxf6 {[%clk 0:02:28]} 23... Bxf6 {[%clk 0:05:10.1]}
24. Bxc4 {[%clk 0:01:57.8]} 24... Bxc4 {[%clk 0:05:07.4]} 25. Rh2 {[%clk
0:01:41]} 25... Re8 {[%clk 0:05:07.2]} 26. Qh7+ {[%clk 0:01:28.9]} 26... Kf8
{[%clk 0:05:06.5]} 27. f5 {[%clk 0:00:58.2]} 27... Rxe3 {[%clk 0:04:26]} 28.
Qh6+ {[%clk 0:00:54.8]} 28... Bg7 {[%clk 0:04:18.7]} 29. Qxe3 {[%clk 0:00:55.4]}
29... g5 {[%clk 0:03:41.2]} 30. f6 {[%clk 0:00:43.7]} 30... Bxf6 {[%clk
0:03:37.9]} 31. Rf2 {[%clk 0:00:28.3]} 31... Bxd5 {[%clk 0:03:23.2]} 32. Qd3
{[%clk 0:00:28.8]} 32... Bc6 {[%clk 0:02:45.6]} 33. Qf5 {[%clk 0:00:28.4]} 33...
Kg7 {[%clk 0:02:36.1]} 34. Ref1 {[%clk 0:00:28.4]} 34... Bd4 {[%clk 0:02:25.2]}
35. Qxf7+ {[%clk 0:00:28.4]} 35... Kh6 {[%clk 0:02:16.9]} 36. Qe6+ {[%clk
0:00:25.4]} 36... Kg7 {[%clk 0:02:17.4]} 37. Qf7+ {[%clk 0:00:21.4]} 37... Kh6
{[%clk 0:02:18.2]} 38. c3 {[%clk 0:00:15.9]} 38... bxc3 {[%clk 0:02:05.5]} 39.
bxc3 {[%clk 0:00:16.5]} 39... Bc5 {[%clk 0:02:06.2]} 40. Kh2 {[%clk 0:00:14.9]}
40... Bxf2 {[%clk 0:01:43.9]} 41. Rxf2 {[%clk 0:00:15.8]} 41... g4 {[%clk
0:01:35]} 42. Rf6+ {[%clk 0:00:16.1]} 42... Kg5 {[%clk 0:01:36]} 43. Qg6+ {[%clk
0:00:16.5]} 43... Kh4 {[%clk 0:01:36.4]} 44. Qh6# {[%clk 0:00:17.5]} 1-0

[Event "GrandPrix_29.05"]
[Site "Chess.com"]
[Date "2020.05.29"]
[Round "6"]
[White "IMTominho"]
[Black "bedgasm"]
[Result "0-1"]
[WhiteElo "2063"]
[BlackElo "2242"]
[TimeControl "600+2"]
[EndTime "12:01:02 PDT"]
[Termination "bedgasm won by resignation"]

1. d4 {[%clk 0:10:01.9]} 1... f5 {[%clk 0:09:52.6]} 2. Nf3 {[%clk 0:10:01.5]}
2... e6 {[%clk 0:09:52.8]} 3. g3 {[%clk 0:09:56.9]} 3... b6 {[%clk 0:09:52.4]}
4. Bg2 {[%clk 0:09:57.6]} 4... Bb7 {[%clk 0:09:53.2]} 5. O-O {[%clk 0:09:58.4]}
5... Nf6 {[%clk 0:09:53.1]} 6. c4 {[%clk 0:09:54.6]} 6... c5 {[%clk 0:09:04.5]}
7. d5 {[%clk 0:09:42.7]} 7... exd5 {[%clk 0:08:58.6]} 8. Nh4 {[%clk 0:09:17]}
8... g6 {[%clk 0:07:31.9]} 9. Nc3 {[%clk 0:08:28.3]} 9... Ne4 {[%clk 0:06:28.7]}
10. Nxd5 {[%clk 0:08:18.4]} 10... Bg7 {[%clk 0:06:16]} 11. f3 {[%clk 0:06:47.7]}
11... Nf6 {[%clk 0:05:57.3]} 12. Bg5 {[%clk 0:06:47.1]} 12... Bxd5 {[%clk
0:03:00.9]} 13. cxd5 {[%clk 0:06:46.1]} 13... d6 {[%clk 0:02:59.2]} 14. e4
{[%clk 0:06:31.4]} 14... fxe4 {[%clk 0:02:59.1]} 15. f4 {[%clk 0:05:28.3]} 15...
O-O {[%clk 0:02:49.9]} 16. f5 {[%clk 0:05:14.2]} 16... h6 {[%clk 0:02:41.3]} 17.
Bxf6 {[%clk 0:05:13.6]} 17... Qxf6 {[%clk 0:02:42.1]} 18. Nxg6 {[%clk
0:04:49.2]} 18... Qd4+ {[%clk 0:02:39.7]} 19. Kh1 {[%clk 0:04:46.1]} 19... Qxd1
{[%clk 0:02:37.5]} 20. Raxd1 {[%clk 0:04:48]} 20... Rf7 {[%clk 0:02:34.3]} 21.
Bxe4 {[%clk 0:04:15.4]} 21... Bxb2 {[%clk 0:02:32.5]} 22. g4 {[%clk 0:04:11]}
22... Nd7 {[%clk 0:02:27]} 23. h4 {[%clk 0:04:10.6]} 23... Re8 {[%clk
0:02:18.9]} 24. Bb1 {[%clk 0:03:54.2]} 24... Ne5 {[%clk 0:02:11.8]} 25. Nxe5
{[%clk 0:03:43.9]} 25... Rxe5 {[%clk 0:02:06.9]} 26. Rd2 {[%clk 0:03:28.7]}
26... Bd4 {[%clk 0:02:00.9]} 27. g5 {[%clk 0:03:20.2]} 27... hxg5 {[%clk
0:01:52.5]} 28. hxg5 {[%clk 0:03:22.1]} 28... Rh7+ {[%clk 0:01:36.7]} 29. Rh2
{[%clk 0:03:18.5]} 29... Rxh2+ {[%clk 0:01:26.5]} 30. Kxh2 {[%clk 0:03:20.4]}
30... c4 {[%clk 0:01:22.5]} 31. Kh3 {[%clk 0:03:00.8]} 31... c3 {[%clk
0:01:20.7]} 32. Kg4 {[%clk 0:02:33.7]} 32... Re2 {[%clk 0:01:12.5]} 33. Rf4
{[%clk 0:02:34.3]} 33... Rg2+ {[%clk 0:01:00.4]} 34. Kh3 {[%clk 0:02:20.8]}
34... Rd2 {[%clk 0:00:57.1]} 35. f6 {[%clk 0:02:16.4]} 35... Be3 {[%clk
0:00:50]} 36. Bh7+ {[%clk 0:02:14.6]} 36... Kxh7 {[%clk 0:00:50.8]} 37. f7
{[%clk 0:02:15]} 37... Rh2+ {[%clk 0:00:45.5]} 38. Kg4 {[%clk 0:02:11.1]} 38...
Rg2+ {[%clk 0:00:45.8]} 39. Kf3 {[%clk 0:01:54.2]} 39... Rf2+ {[%clk 0:00:40.1]}
40. Kxe3 {[%clk 0:01:48.4]} 40... Rxf4 {[%clk 0:00:40]} 41. Kxf4 {[%clk
0:01:43]} 41... Kg7 {[%clk 0:00:38.8]} 0-1

[Event "GrandPrix_29.05"]
[Site "Chess.com"]
[Date "2020.05.29"]
[Round "6"]
[White "redblizzard"]
[Black "BogdanBelyakov89"]
[Result "0-1"]
[WhiteElo "1929"]
[BlackElo "2243"]
[TimeControl "600+2"]
[EndTime "12:01:02 PDT"]
[Termination "BogdanBelyakov89 won by checkmate"]

1. e4 {[%clk 0:09:52.8]} 1... e5 {[%clk 0:10:00.4]} 2. Nf3 {[%clk 0:09:52.9]}
2... Nc6 {[%clk 0:10:01.2]} 3. Nc3 {[%clk 0:09:50.9]} 3... Nf6 {[%clk
0:10:01.6]} 4. d4 {[%clk 0:09:52.3]} 4... exd4 {[%clk 0:10:03.5]} 5. Nxd4 {[%clk
0:09:53.5]} 5... Bb4 {[%clk 0:10:03.7]} 6. Nxc6 {[%clk 0:09:54.5]} 6... bxc6
{[%clk 0:10:05.6]} 7. Bd3 {[%clk 0:09:55.1]} 7... d5 {[%clk 0:10:06.1]} 8. exd5
{[%clk 0:09:56.2]} 8... cxd5 {[%clk 0:10:08]} 9. O-O {[%clk 0:09:57.1]} 9... O-O
{[%clk 0:10:09]} 10. h3 {[%clk 0:09:55.5]} 10... c6 {[%clk 0:10:05.9]} 11. Qf3
{[%clk 0:09:51.3]} 11... Re8 {[%clk 0:10:03.5]} 12. Bg5 {[%clk 0:09:46.1]} 12...
Bd6 {[%clk 0:08:49]} 13. Rfe1 {[%clk 0:09:04.9]} 13... Be5 {[%clk 0:08:08.2]}
14. Re2 {[%clk 0:07:33.5]} 14... Bd7 {[%clk 0:07:50.7]} 15. Rae1 {[%clk
0:07:21.3]} 15... Qc7 {[%clk 0:07:32.7]} 16. Bxf6 {[%clk 0:06:10.4]} 16... Bxf6
{[%clk 0:07:28.3]} 17. Qf5 {[%clk 0:06:06]} 17... Kf8 {[%clk 0:05:40.8]} 18.
Qxh7 {[%clk 0:05:34]} 18... g6 {[%clk 0:05:41.3]} 19. Qh6+ {[%clk 0:04:17.6]}
19... Bg7 {[%clk 0:05:38.9]} 20. Qh4 {[%clk 0:04:03.9]} 20... Qb6 {[%clk
0:05:01.6]} 21. Re7 {[%clk 0:02:57.3]} 21... Be6 {[%clk 0:04:23.6]} 22. R1xe6
{[%clk 0:01:38.3]} 22... fxe6 {[%clk 0:04:07]} 23. Rd7 {[%clk 0:01:28.2]} 23...
Qd4 {[%clk 0:03:58.1]} 24. Qg3 {[%clk 0:01:21.3]} 24... Qe5 {[%clk 0:02:41.7]}
25. Qxg6 {[%clk 0:00:27.3]} 25... Re7 {[%clk 0:02:20]} 26. Rxe7 {[%clk 0:00:28]}
26... Kxe7 {[%clk 0:02:21.9]} 27. Ne2 {[%clk 0:00:27.4]} 27... Rf8 {[%clk
0:02:05.3]} 28. g3 {[%clk 0:00:22.8]} 28... Qf6 {[%clk 0:01:58.4]} 29. Nf4
{[%clk 0:00:21]} 29... Bh6 {[%clk 0:01:29.9]} 30. Qh7+ {[%clk 0:00:14.1]} 30...
Kd6 {[%clk 0:01:18.6]} 31. Qxa7 {[%clk 0:00:03.6]} 31... Bxf4 {[%clk 0:01:16.5]}
32. Qa3+ {[%clk 0:00:02.2]} 32... c5 {[%clk 0:01:11.6]} 33. gxf4 {[%clk
0:00:03.4]} 33... Qxf4 {[%clk 0:01:11.6]} 34. Qa6+ {[%clk 0:00:04.9]} 34... Ke5
{[%clk 0:01:12.6]} 35. Kf1 {[%clk 0:00:04.9]} 35... Qxf2# {[%clk 0:01:12.7]} 0-1

[Event "GrandPrix_29.05"]
[Site "Chess.com"]
[Date "2020.05.29"]
[Round "6"]
[White "KJakubowski"]
[Black "vladislavkovalev"]
[Result "0-1"]
[WhiteElo "2541"]
[BlackElo "2747"]
[TimeControl "600+2"]
[EndTime "12:01:04 PDT"]
[Termination "vladislavkovalev won on time"]

1. d4 {[%clk 0:10:01.9]} 1... Nf6 {[%clk 0:10:01.3]} 2. Nf3 {[%clk 0:10:01.2]}
2... e6 {[%clk 0:10:00.6]} 3. Bg5 {[%clk 0:09:48.6]} 3... d5 {[%clk 0:09:55.4]}
4. e3 {[%clk 0:09:42.1]} 4... c5 {[%clk 0:09:54.9]} 5. c3 {[%clk 0:08:17.8]}
5... Qb6 {[%clk 0:09:53.1]} 6. Qb3 {[%clk 0:08:17.4]} 6... Ne4 {[%clk
0:09:49.5]} 7. Bf4 {[%clk 0:08:11.1]} 7... Nc6 {[%clk 0:08:13.3]} 8. Nbd2 {[%clk
0:08:09.1]} 8... Nxd2 {[%clk 0:08:12.4]} 9. Nxd2 {[%clk 0:08:08.3]} 9... Qxb3
{[%clk 0:08:03.1]} 10. axb3 {[%clk 0:08:05.3]} 10... Bd7 {[%clk 0:08:04.5]} 11.
Be2 {[%clk 0:07:48.1]} 11... f6 {[%clk 0:08:05.3]} 12. O-O {[%clk 0:07:38.7]}
12... Kf7 {[%clk 0:08:05.9]} 13. Bg3 {[%clk 0:07:30.4]} 13... Be7 {[%clk
0:07:41]} 14. dxc5 {[%clk 0:07:18.2]} 14... Bxc5 {[%clk 0:07:41.8]} 15. b4
{[%clk 0:07:19.4]} 15... Bb6 {[%clk 0:07:39.2]} 16. Bd6 {[%clk 0:06:45.5]} 16...
e5 {[%clk 0:06:42.5]} 17. Nb3 {[%clk 0:06:31.6]} 17... Be6 {[%clk 0:06:01.4]}
18. Nc5 {[%clk 0:06:26.2]} 18... Bxc5 {[%clk 0:06:02.7]} 19. bxc5 {[%clk
0:06:25.8]} 19... a6 {[%clk 0:06:04]} 20. Ra3 {[%clk 0:05:13.1]} 20... h5 {[%clk
0:05:49.9]} 21. Rb3 {[%clk 0:05:05]} 21... Ra7 {[%clk 0:05:47.7]} 22. Rb6 {[%clk
0:05:02.9]} 22... h4 {[%clk 0:05:36.3]} 23. h3 {[%clk 0:04:54.9]} 23... Ne7
{[%clk 0:05:28.8]} 24. Bxe7 {[%clk 0:04:36.2]} 24... Kxe7 {[%clk 0:05:30.7]} 25.
Ra1 {[%clk 0:04:18.9]} 25... Bd7 {[%clk 0:05:31.4]} 26. Ra5 {[%clk 0:04:09.6]}
26... Bc6 {[%clk 0:05:28.7]} 27. b4 {[%clk 0:04:10.3]} 27... Rha8 {[%clk
0:05:24.2]} 28. Bd1 {[%clk 0:03:41]} 28... Rc8 {[%clk 0:05:03.9]} 29. Bb3 {[%clk
0:03:10]} 29... Raa8 {[%clk 0:05:00.6]} 30. Ba4 {[%clk 0:03:02.6]} 30... Bxa4
{[%clk 0:04:57.4]} 31. Rxa4 {[%clk 0:03:03]} 31... Rc7 {[%clk 0:04:52.9]} 32.
Kf1 {[%clk 0:01:48.7]} 32... Rd8 {[%clk 0:04:51.7]} 33. Ke2 {[%clk 0:01:49.4]}
33... d4 {[%clk 0:04:45.8]} 34. cxd4 {[%clk 0:01:42.3]} 34... exd4 {[%clk
0:04:47.7]} 35. e4 {[%clk 0:01:43.3]} 35... d3+ {[%clk 0:04:46.6]} 36. Kd2
{[%clk 0:01:43.8]} 36... Rd4 {[%clk 0:04:43.5]} 37. f3 {[%clk 0:01:43.3]} 37...
Rcd7 {[%clk 0:04:42.2]} 38. Ra3 {[%clk 0:01:35.7]} 38... Kd8 {[%clk 0:04:37.1]}
39. Rb3 {[%clk 0:01:17.3]} 39... Kc7 {[%clk 0:04:34.9]} 40. Re6 {[%clk
0:01:18.8]} 40... Rc4 {[%clk 0:04:32.1]} 41. Rb2 {[%clk 0:01:06.3]} 41... Rcd4
{[%clk 0:04:27.1]} 42. Rb6 {[%clk 0:01:01.5]} 42... Rc4 {[%clk 0:04:23]} 43. Re6
{[%clk 0:01:01.5]} 43... Rcd4 {[%clk 0:04:23.1]} 44. Rb6 {[%clk 0:01:02.2]}
44... f5 {[%clk 0:03:59.2]} 45. exf5 {[%clk 0:00:57.5]} 45... R4d5 {[%clk
0:04:00.6]} 46. Re6 {[%clk 0:00:12.3]} 46... Rxf5 {[%clk 0:03:48.5]} 47. Re4
{[%clk 0:00:12.9]} 47... Rg5 {[%clk 0:03:24.3]} 48. Kc3 {[%clk 0:00:07.3]} 48...
a5 {[%clk 0:03:14.1]} 49. Rd2 {[%clk 0:00:05.3]} 49... Kc6 {[%clk 0:03:01.3]}
50. Rxh4 {[%clk 0:00:06]} 50... axb4+ {[%clk 0:02:58.6]} 51. Rxb4 {[%clk
0:00:05.4]} 51... Rxc5+ {[%clk 0:02:54.7]} 52. Kb3 {[%clk 0:00:06.5]} 52... b5
{[%clk 0:02:51]} 53. h4 {[%clk 0:00:07.1]} 53... Re5 {[%clk 0:02:47.9]} 54. Rg4
{[%clk 0:00:05.8]} 54... Re1 {[%clk 0:02:45.5]} 55. Rg6+ {[%clk 0:00:06]} 55...
Kc5 {[%clk 0:02:45.2]} 0-1

[Event "GrandPrix_29.05"]
[Site "Chess.com"]
[Date "2020.05.29"]
[Round "6"]
[White "Gurvich_Vitaly"]
[Black "AmilAbbasov"]
[Result "1-0"]
[WhiteElo "2434"]
[BlackElo "2241"]
[TimeControl "600+2"]
[EndTime "12:01:10 PDT"]
[Termination "Gurvich_Vitaly won by resignation"]

1. e4 {[%clk 0:10:00.4]} 1... c5 {[%clk 0:09:56.9]} 2. Nf3 {[%clk 0:10:01.1]}
2... Nc6 {[%clk 0:09:54.7]} 3. d4 {[%clk 0:10:01]} 3... cxd4 {[%clk 0:09:54.8]}
4. Nxd4 {[%clk 0:10:02.9]} 4... g6 {[%clk 0:09:54.9]} 5. c4 {[%clk 0:10:02.7]}
5... Bg7 {[%clk 0:09:55.1]} 6. Be3 {[%clk 0:10:03.3]} 6... Nf6 {[%clk
0:09:55.7]} 7. Nc3 {[%clk 0:10:03.6]} 7... O-O {[%clk 0:09:55.6]} 8. Be2 {[%clk
0:10:04]} 8... b6 {[%clk 0:09:55.5]} 9. O-O {[%clk 0:09:50.8]} 9... Bb7 {[%clk
0:09:55.1]} 10. f3 {[%clk 0:09:51.5]} 10... e6 {[%clk 0:09:54.3]} 11. Qd2 {[%clk
0:08:53.6]} 11... d5 {[%clk 0:09:51.3]} 12. Nxc6 {[%clk 0:08:51.9]} 12... Bxc6
{[%clk 0:09:50.3]} 13. cxd5 {[%clk 0:08:53.2]} 13... exd5 {[%clk 0:09:51.5]} 14.
e5 {[%clk 0:08:53.8]} 14... Ne8 {[%clk 0:09:48.3]} 15. f4 {[%clk 0:08:52.7]}
15... f6 {[%clk 0:09:39.1]} 16. Bf3 {[%clk 0:06:54.3]} 16... Nc7 {[%clk
0:09:13.1]} 17. exf6 {[%clk 0:06:35]} 17... Bxf6 {[%clk 0:06:53.9]} 18. Rad1
{[%clk 0:06:30.6]} 18... Qd7 {[%clk 0:06:48.1]} 19. g3 {[%clk 0:06:24.3]} 19...
Rad8 {[%clk 0:06:46.8]} 20. Ne2 {[%clk 0:06:21.5]} 20... Rfe8 {[%clk 0:05:59.6]}
21. Nd4 {[%clk 0:06:19.7]} 21... Bb7 {[%clk 0:05:52.1]} 22. Rfe1 {[%clk
0:06:18.4]} 22... Nb5 {[%clk 0:05:41.8]} 23. Nxb5 {[%clk 0:06:12.2]} 23... Qxb5
{[%clk 0:05:43.7]} 24. Bd4 {[%clk 0:06:13.1]} 24... Bxd4+ {[%clk 0:03:46.4]} 25.
Qxd4 {[%clk 0:06:15]} 25... Qd7 {[%clk 0:03:45.4]} 26. Re5 {[%clk 0:05:23.6]}
26... Rxe5 {[%clk 0:03:24.2]} 27. Qxe5 {[%clk 0:05:25.5]} 27... Qf5 {[%clk
0:02:36.3]} 28. Qxf5 {[%clk 0:04:07.4]} 28... gxf5 {[%clk 0:02:38.2]} 29. Rc1
{[%clk 0:04:08.9]} 29... Rd7 {[%clk 0:02:34.1]} 30. Kf2 {[%clk 0:04:09.2]} 30...
Kf7 {[%clk 0:02:33.9]} 31. h3 {[%clk 0:04:08.4]} 31... Kf6 {[%clk 0:02:31.7]}
32. g4 {[%clk 0:04:08.3]} 32... fxg4 {[%clk 0:02:31.6]} 33. hxg4 {[%clk
0:04:10.2]} 33... d4 {[%clk 0:01:42.6]} 34. Bxb7 {[%clk 0:04:07]} 34... Rxb7
{[%clk 0:01:44.5]} 35. Rc6+ {[%clk 0:04:07.4]} 35... Ke7 {[%clk 0:01:20.5]} 36.
Rh6 {[%clk 0:04:04.4]} 36... Kd8 {[%clk 0:01:19.4]} 37. Rd6+ {[%clk 0:03:55.9]}
37... Ke7 {[%clk 0:01:14.8]} 38. Rxd4 {[%clk 0:03:56.7]} 38... Ke6 {[%clk
0:01:16.3]} 39. Re4+ {[%clk 0:03:28.1]} 39... Kd5 {[%clk 0:01:14.7]} 40. Re2
{[%clk 0:03:27]} 40... b5 {[%clk 0:01:07.9]} 41. Kg3 {[%clk 0:03:26.5]} 41... b4
{[%clk 0:01:05.9]} 42. f5 {[%clk 0:03:25.5]} 42... a5 {[%clk 0:01:02.5]} 43. Kf4
{[%clk 0:03:25.7]} 43... a4 {[%clk 0:01:02.7]} 44. g5 {[%clk 0:03:21.1]} 44...
b3 {[%clk 0:00:51.8]} 45. axb3 {[%clk 0:03:10.8]} 45... axb3 {[%clk 0:00:53.7]}
46. f6 {[%clk 0:03:11.2]} 46... Kd6 {[%clk 0:00:27]} 47. Re3 {[%clk 0:03:00.5]}
47... Rb4+ {[%clk 0:00:27]} 48. Kf5 {[%clk 0:03:00.2]} 48... Rb5+ {[%clk
0:00:28]} 49. Kg4 {[%clk 0:03:01.4]} 49... Rb7 {[%clk 0:00:23.9]} 50. Kh5 {[%clk
0:03:01.3]} 50... Kd5 {[%clk 0:00:25]} 51. Re7 {[%clk 0:02:57.1]} 51... Rb4
{[%clk 0:00:20.6]} 52. Rxh7 {[%clk 0:02:53.9]} 52... Rf4 {[%clk 0:00:20.5]} 53.
Rd7+ {[%clk 0:02:47.3]} 53... Ke6 {[%clk 0:00:16.5]} 54. Rd3 {[%clk 0:02:43.6]}
54... Rb4 {[%clk 0:00:14.9]} 55. Kg6 {[%clk 0:02:42.5]} 1-0

[Event "GrandPrix_29.05"]
[Site "Chess.com"]
[Date "2020.05.29"]
[Round "6"]
[White "FLamps8"]
[Black "ArnaudovP"]
[Result "1-0"]
[WhiteElo "2238"]
[BlackElo "2289"]
[TimeControl "600+2"]
[EndTime "12:01:12 PDT"]
[Termination "FLamps8 won by checkmate"]

1. d4 {[%clk 0:10:01.9]} 1... Nf6 {[%clk 0:09:58.5]} 2. Bf4 {[%clk 0:10:01.7]}
2... d5 {[%clk 0:09:51]} 3. Nc3 {[%clk 0:09:52.3]} 3... e6 {[%clk 0:09:49.8]} 4.
e3 {[%clk 0:09:52.9]} 4... Bb4 {[%clk 0:09:43.6]} 5. Ne2 {[%clk 0:09:53.1]} 5...
O-O {[%clk 0:09:26.5]} 6. a3 {[%clk 0:09:52.6]} 6... Be7 {[%clk 0:09:25.7]} 7.
Ng3 {[%clk 0:09:49]} 7... a6 {[%clk 0:09:22]} 8. Bd3 {[%clk 0:09:43.1]} 8... c5
{[%clk 0:09:21.8]} 9. dxc5 {[%clk 0:09:27.5]} 9... Bxc5 {[%clk 0:09:16.5]} 10.
e4 {[%clk 0:09:14.4]} 10... e5 {[%clk 0:08:32.1]} 11. Bg5 {[%clk 0:08:18.3]}
11... h6 {[%clk 0:08:31.7]} 12. Bxf6 {[%clk 0:07:40.3]} 12... Qxf6 {[%clk
0:08:31.6]} 13. O-O {[%clk 0:07:41.2]} 13... d4 {[%clk 0:08:32.5]} 14. Nd5
{[%clk 0:07:42]} 14... Qd8 {[%clk 0:08:32.6]} 15. b4 {[%clk 0:07:28.3]} 15...
Bd6 {[%clk 0:08:29.2]} 16. Nf5 {[%clk 0:06:36.3]} 16... Re8 {[%clk 0:08:05.9]}
17. Nxd6 {[%clk 0:05:24.9]} 17... Qxd6 {[%clk 0:08:05]} 18. c4 {[%clk
0:05:26.6]} 18... dxc3 {[%clk 0:08:05]} 19. Rc1 {[%clk 0:04:26.3]} 19... Be6
{[%clk 0:08:03]} 20. Rxc3 {[%clk 0:04:15.5]} 20... Bxd5 {[%clk 0:08:01.3]} 21.
Bc4 {[%clk 0:04:13.5]} 21... Qc7 {[%clk 0:07:20.4]} 22. Qxd5 {[%clk 0:03:41.4]}
22... Nc6 {[%clk 0:06:50.4]} 23. Qc5 {[%clk 0:03:33.2]} 23... Qd7 {[%clk
0:05:58.6]} 24. Bd5 {[%clk 0:03:00.8]} 24... Nd4 {[%clk 0:05:56]} 25. Qc7 {[%clk
0:02:56.6]} 25... Rad8 {[%clk 0:05:25.7]} 26. Re1 {[%clk 0:02:42.1]} 26... Re7
{[%clk 0:05:11.9]} 27. Qxd7 {[%clk 0:02:34.5]} 27... Rdxd7 {[%clk 0:05:02.9]}
28. Kf1 {[%clk 0:02:36.2]} 28... g6 {[%clk 0:04:58.4]} 29. a4 {[%clk 0:02:23.9]}
29... b6 {[%clk 0:04:49.4]} 30. Rec1 {[%clk 0:02:17.5]} 30... Kg7 {[%clk
0:04:47]} 31. Rc8 {[%clk 0:02:18.1]} 31... a5 {[%clk 0:04:32.5]} 32. b5 {[%clk
0:02:10]} 32... Ne6 {[%clk 0:04:19.5]} 33. R1c6 {[%clk 0:01:44.2]} 33... Nf4
{[%clk 0:03:59.4]} 34. Rxb6 {[%clk 0:01:34.3]} 34... Nxd5 {[%clk 0:03:58.6]} 35.
exd5 {[%clk 0:01:36.2]} 35... Rxd5 {[%clk 0:03:59.8]} 36. Ra6 {[%clk 0:01:29.2]}
36... Red7 {[%clk 0:03:53.8]} 37. Rc2 {[%clk 0:01:26.5]} 37... Rd1+ {[%clk
0:03:44.5]} 38. Ke2 {[%clk 0:01:27.2]} 38... Ra1 {[%clk 0:03:45.5]} 39. Rxa5
{[%clk 0:01:26.7]} 39... Rd4 {[%clk 0:03:45.4]} 40. b6 {[%clk 0:00:40.3]} 40...
Raxa4 {[%clk 0:02:49.7]} 41. Rxa4 {[%clk 0:00:36.9]} 41... Rxa4 {[%clk
0:02:50.5]} 42. Rb2 {[%clk 0:00:38.6]} 42... Ra8 {[%clk 0:02:49.4]} 43. b7
{[%clk 0:00:37.2]} 43... Rb8 {[%clk 0:02:50.3]} 44. Kd3 {[%clk 0:00:37.8]} 44...
Kf6 {[%clk 0:02:51.1]} 45. Ke4 {[%clk 0:00:38.2]} 45... Ke6 {[%clk 0:02:27.3]}
46. Rb6+ {[%clk 0:00:38.5]} 46... Kd7 {[%clk 0:02:28.2]} 47. Kxe5 {[%clk
0:00:40.4]} 47... Kc7 {[%clk 0:02:29.3]} 48. Rb2 {[%clk 0:00:38]} 48... Kd7
{[%clk 0:01:46.8]} 49. Kf6 {[%clk 0:00:36.3]} 49... Ke8 {[%clk 0:01:47.9]} 50.
Re2+ {[%clk 0:00:32]} 50... Kf8 {[%clk 0:01:48.5]} 51. Rc2 {[%clk 0:00:30.5]}
51... Rxb7 {[%clk 0:01:48.5]} 52. Rc8# {[%clk 0:00:31.3]} 1-0